[Event "Titled Tuesday Blitz November 22 Late 2022"]
[White "Melkumyan, Hrant"]
[Black "Machidon, Cristi"]
[WhiteFideId "13302485"]
[BlackFideId "13904590"]
[WhiteElo "2604"]
[BlackElo "2333"]
[Result "1-0"]
[Round "02"]
[TimeControl "180+1"]
[Date "2022.11.22"]
[WhiteClock "0:00:16"]
[BlackClock "0:00:06"]

1. d4 {[%clk 0:03:00]}  Nf6 {[%clk 0:02:58]} 2. c4 {[%clk 0:03:01]}  e6 {[%clk 0:02:57]} 3. Bf4 {[%clk 0:03:01]}  d5 {[%clk 0:02:55]} 4. e3 {[%clk 0:03:01]}  b6 {[%clk 0:02:55]} 5. Nc3 {[%clk 0:03:00]}  Bb7 {[%clk 0:02:54]} 6. Rc1 {[%clk 0:03:00]}  a6 {[%clk 0:02:54]} 7. cxd5 {[%clk 0:02:56]}  exd5 {[%clk 0:02:53]} 8. Nge2 {[%clk 0:02:55]}  Bd6 {[%clk 0:02:53]} 9. Bxd6 {[%clk 0:02:47]}  Qxd6 {[%clk 0:02:54]} 10. Ng3 {[%clk 0:02:46]}  O-O {[%clk 0:02:52]} 11. Bd3 {[%clk 0:02:45]}  g6 {[%clk 0:02:40]} 12. O-O {[%clk 0:02:45]}  Nbd7 {[%clk 0:02:40]} 13. a3 {[%clk 0:02:42]}  c5 {[%clk 0:02:39]} 14. dxc5 {[%clk 0:02:42]}  bxc5 {[%clk 0:02:40]} 15. Be2 {[%clk 0:02:30]}  Rab8 {[%clk 0:02:39]} 16. Bf3 {[%clk 0:02:24]}  Rfd8 {[%clk 0:02:37]} 17. Nce4 {[%clk 0:02:14]}  Qe7 {[%clk 0:02:34]} 18. Nxf6+ {[%clk 0:02:14]}  Nxf6 {[%clk 0:02:34]} 19. Qc2 {[%clk 0:02:11]}  d4 {[%clk 0:02:12]} 20. Bxb7 {[%clk 0:02:03]}  Rxb7 {[%clk 0:02:13]} 21. exd4 {[%clk 0:01:25]}  cxd4 {[%clk 0:02:14]} 22. Rfd1 {[%clk 0:01:23]}  Qe5 {[%clk 0:01:52]} 23. b4 {[%clk 0:01:19]}  a5 {[%clk 0:01:49]} 24. Qc6 {[%clk 0:01:09]}  Rbd7 {[%clk 0:01:28]} 25. bxa5 {[%clk 0:01:05]}  Rd6 {[%clk 0:01:25]} 26. Qc7 {[%clk 0:01:01]}  R8d7 {[%clk 0:01:20]} 27. Qb8+ {[%clk 0:00:58]}  Kg7 {[%clk 0:01:19]} 28. Qb4 {[%clk 0:00:59]}  d3 {[%clk 0:01:09]} 29. Qc3 {[%clk 0:00:56]}  Qxc3 {[%clk 0:01:06]} 30. Rxc3 {[%clk 0:00:57]}  Rd5 {[%clk 0:01:05]} 31. h3 {[%clk 0:00:44]}  d2 {[%clk 0:01:05]} 32. Nf1 {[%clk 0:00:42]}  Ne4 {[%clk 0:01:03]} 33. Re3 {[%clk 0:00:41]}  f5 {[%clk 0:01:01]} 34. f3 {[%clk 0:00:41]}  Nc5 {[%clk 0:00:59]} 35. Rc3 {[%clk 0:00:41]}  Na4 {[%clk 0:00:57]} 36. Rc2 {[%clk 0:00:41]}  Rxa5 {[%clk 0:00:54]} 37. Rdxd2 {[%clk 0:00:41]}  Rxd2 {[%clk 0:00:53]} 38. Nxd2 {[%clk 0:00:42]}  Nb6 {[%clk 0:00:49]} 39. Rc6 {[%clk 0:00:39]}  Rb5 {[%clk 0:00:38]} 40. Rc7+ {[%clk 0:00:31]}  Kh6 {[%clk 0:00:37]} 41. Rb7 {[%clk 0:00:31]}  Rd5 {[%clk 0:00:29]} 42. Rxb6 {[%clk 0:00:19]}  Rxd2 {[%clk 0:00:29]} 43. Rb4 {[%clk 0:00:19]}  Ra2 {[%clk 0:00:27]} 44. a4 {[%clk 0:00:19]}  g5 {[%clk 0:00:26]} 45. h4 {[%clk 0:00:19]}  gxh4 {[%clk 0:00:18]} 46. Rxh4+ {[%clk 0:00:19]}  Kg5 {[%clk 0:00:18]} 47. Rb4 {[%clk 0:00:19]}  h5 {[%clk 0:00:17]} 48. Kh2 {[%clk 0:00:19]}  Ra1 {[%clk 0:00:13]} 49. Kg3 {[%clk 0:00:19]}  Ra3 {[%clk 0:00:13]} 50. Kh3 {[%clk 0:00:17]}  Ra2 {[%clk 0:00:10]} 51. f4+ {[%clk 0:00:16]}  Kg6 {[%clk 0:00:10]} 52. Rb6+ {[%clk 0:00:16]}  Kf7 {[%clk 0:00:09]} 53. Ra6 {[%clk 0:00:17]}  Ke7 {[%clk 0:00:08]} 54. g3 {[%clk 0:00:17]}  Ra3 {[%clk 0:00:06]} 55. Kh4 {[%clk 0:00:17]}  Kd7 {[%clk 0:00:06]} 56. Rf6 {[%clk 0:00:16]}  Rxa4 {[%clk 0:00:06]} 57. Rxf5 {[%clk 0:00:16]} 1-0


[Site "https://www.chess.com"]

[Event "Titled Tuesday Blitz November 22 Late 2022"]
[White "Mesa Cruz, Juan Carlos"]
[Black "Petrovic, Aleksa"]
[WhiteFideId "6423400"]
[BlackFideId "967629"]
[WhiteElo "2059"]
[BlackElo "2224"]
[Result "0-1"]
[Round "02"]
[TimeControl "180+1"]
[Date "2022.11.23"]
[WhiteClock "0:00:02"]
[BlackClock "0:00:20"]

1. c4 {[%clk 0:03:00]}  Nf6 {[%clk 0:02:58]} 2. Nc3 {[%clk 0:02:58]}  e5 {[%clk 0:02:55]} 3. g3 {[%clk 0:02:57]}  Bb4 {[%clk 0:02:52]} 4. Bg2 {[%clk 0:02:54]}  O-O {[%clk 0:02:51]} 5. e4 {[%clk 0:02:52]}  Bxc3 {[%clk 0:02:48]} 6. dxc3 {[%clk 0:02:51]}  d6 {[%clk 0:02:45]} 7. Ne2 {[%clk 0:02:51]}  Nc6 {[%clk 0:02:42]} 8. O-O {[%clk 0:02:51]}  Be6 {[%clk 0:02:39]} 9. Qd3 {[%clk 0:02:49]}  Qd7 {[%clk 0:02:34]} 10. b4 {[%clk 0:02:30]}  Bh3 {[%clk 0:02:30]} 11. Bg5 {[%clk 0:02:25]}  Bxg2 {[%clk 0:02:25]} 12. Kxg2 {[%clk 0:02:26]}  Ne8 {[%clk 0:02:18]} 13. c5 {[%clk 0:02:07]}  f6 {[%clk 0:02:11]} 14. Be3 {[%clk 0:02:05]}  a6 {[%clk 0:01:42]} 15. Rad1 {[%clk 0:01:54]}  Rd8 {[%clk 0:01:42]} 16. a4 {[%clk 0:01:52]}  Ne7 {[%clk 0:01:31]} 17. Nc1 {[%clk 0:01:43]}  Qxa4 {[%clk 0:01:25]} 18. Rd2 {[%clk 0:01:26]}  d5 {[%clk 0:01:20]} 19. Rfd1 {[%clk 0:01:20]}  c6 {[%clk 0:01:06]} 20. f4 {[%clk 0:01:15]}  Nc7 {[%clk 0:01:00]} 21. fxe5 {[%clk 0:01:13]}  fxe5 {[%clk 0:00:56]} 22. Bg5 {[%clk 0:00:39]}  Rf7 {[%clk 0:00:47]} 23. Qe2 {[%clk 0:00:28]}  h6 {[%clk 0:00:40]} 24. exd5 {[%clk 0:00:20]}  cxd5 {[%clk 0:00:26]} 25. Qxe5 {[%clk 0:00:19]}  Nc6 {[%clk 0:00:26]} 26. Qe3 {[%clk 0:00:04]}  hxg5 {[%clk 0:00:25]} 27. Qxg5 {[%clk 0:00:04]}  Rdf8 {[%clk 0:00:24]} 28. h4 {[%clk 0:00:03]}  Qb5 {[%clk 0:00:21]} 29. Nd3 {[%clk 0:00:03]}  Qc4 {[%clk 0:00:20]} 30. Nf4 {[%clk 0:00:03]}  Qe4+ {[%clk 0:00:20]} 31. Kh2 {[%clk 0:00:03]}  Ne6 {[%clk 0:00:20]} 32. Nxe6 {[%clk 0:00:03]}  Qxe6 {[%clk 0:00:20]} 33. Rg2 {[%clk 0:00:02]}  Ne5 {[%clk 0:00:20]} 0-1


[Site "https://www.chess.com"]

[Event "Titled Tuesday Blitz November 22 Late 2022"]
[White "Milchev, Nikolay"]
[Black "Rengifo Blancas, Renzo Jhonathan"]
[WhiteFideId "2906090"]
[BlackFideId "3807185"]
[WhiteElo "2449"]
[BlackElo "2058"]
[Result "1-0"]
[Round "02"]
[TimeControl "180+1"]
[Date "2022.11.23"]
[WhiteClock "0:01:10"]
[BlackClock "0:00:01"]

1. Nf3 {[%clk 0:03:00]}  Nf6 {[%clk 0:03:00]} 2. c4 {[%clk 0:03:00]}  c6 {[%clk 0:03:00]} 3. Nc3 {[%clk 0:03:00]}  d5 {[%clk 0:03:00]} 4. cxd5 {[%clk 0:03:01]}  cxd5 {[%clk 0:03:00]} 5. d4 {[%clk 0:03:02]}  Nc6 {[%clk 0:03:01]} 6. Bf4 {[%clk 0:03:03]}  a6 {[%clk 0:03:00]} 7. Rc1 {[%clk 0:03:02]}  Bg4 {[%clk 0:03:01]} 8. Ne5 {[%clk 0:03:02]}  e6 {[%clk 0:03:01]} 9. Nxg4 {[%clk 0:02:58]}  Nxg4 {[%clk 0:03:01]} 10. e3 {[%clk 0:02:58]}  Nf6 {[%clk 0:03:01]} 11. Bd3 {[%clk 0:02:58]}  Be7 {[%clk 0:02:58]} 12. O-O {[%clk 0:02:57]}  O-O {[%clk 0:02:58]} 13. a3 {[%clk 0:02:57]}  Rc8 {[%clk 0:02:57]} 14. b4 {[%clk 0:02:57]}  b5 {[%clk 0:02:57]} 15. Nb1 {[%clk 0:02:45]}  h6 {[%clk 0:02:57]} 16. Nd2 {[%clk 0:02:46]}  Nd7 {[%clk 0:02:46]} 17. Nb3 {[%clk 0:02:46]}  Nb6 {[%clk 0:02:45]} 18. Nc5 {[%clk 0:02:47]}  Bxc5 {[%clk 0:02:44]} 19. dxc5 {[%clk 0:02:46]}  Nc4 {[%clk 0:02:43]} 20. Bxc4 {[%clk 0:02:41]}  dxc4 {[%clk 0:02:35]} 21. Bd6 {[%clk 0:02:41]}  Re8 {[%clk 0:02:30]} 22. Qc2 {[%clk 0:02:41]}  Qf6 {[%clk 0:02:17]} 23. Rcd1 {[%clk 0:02:41]}  Red8 {[%clk 0:02:04]} 24. Rd2 {[%clk 0:02:41]}  Rd7 {[%clk 0:01:32]} 25. Rfd1 {[%clk 0:02:41]}  Rcd8 {[%clk 0:01:32]} 26. Qe4 {[%clk 0:02:41]}  Ne7 {[%clk 0:01:20]} 27. Qc2 {[%clk 0:02:35]}  Nf5 {[%clk 0:01:10]} 28. e4 {[%clk 0:02:27]}  Nxd6 {[%clk 0:01:04]} 29. Rxd6 {[%clk 0:02:26]}  Rxd6 {[%clk 0:00:59]} 30. cxd6 {[%clk 0:02:27]}  e5 {[%clk 0:00:58]} 31. Qd2 {[%clk 0:02:21]}  c3 {[%clk 0:00:43]} 32. Qxc3 {[%clk 0:02:16]}  Rxd6 {[%clk 0:00:43]} 33. Rxd6 {[%clk 0:02:10]}  Qxd6 {[%clk 0:00:43]} 34. g3 {[%clk 0:02:11]}  Kh7 {[%clk 0:00:42]} 35. Qf3 {[%clk 0:02:09]}  Kg8 {[%clk 0:00:39]} 36. Qf5 {[%clk 0:02:05]}  g6 {[%clk 0:00:37]} 37. Qc8+ {[%clk 0:02:05]}  Kg7 {[%clk 0:00:37]} 38. Qc3 {[%clk 0:02:04]}  Kh7 {[%clk 0:00:35]} 39. Kg2 {[%clk 0:02:03]}  h5 {[%clk 0:00:35]} 40. h4 {[%clk 0:02:04]}  Kg8 {[%clk 0:00:33]} 41. Kf3 {[%clk 0:02:03]}  Kh7 {[%clk 0:00:33]} 42. Ke2 {[%clk 0:02:03]}  Kg8 {[%clk 0:00:33]} 43. Qd3 {[%clk 0:02:01]}  Qe6 {[%clk 0:00:31]} 44. Qd5 {[%clk 0:01:57]}  Qg4+ {[%clk 0:00:31]} 45. Ke1 {[%clk 0:01:55]}  Qf3 {[%clk 0:00:27]} 46. Qxe5 {[%clk 0:01:51]}  Qxa3 {[%clk 0:00:27]} 47. Qe8+ {[%clk 0:01:43]}  Kg7 {[%clk 0:00:27]} 48. Qe5+ {[%clk 0:01:44]}  Kg8 {[%clk 0:00:27]} 49. Qd4 {[%clk 0:01:44]}  Qc1+ {[%clk 0:00:25]} 50. Ke2 {[%clk 0:01:43]}  Qc2+ {[%clk 0:00:25]} 51. Kf3 {[%clk 0:01:43]}  Qb3+ {[%clk 0:00:25]} 52. Kf4 {[%clk 0:01:41]}  Qc2 {[%clk 0:00:25]} 53. f3 {[%clk 0:01:35]}  Qc7+ {[%clk 0:00:23]} 54. e5 {[%clk 0:01:35]}  a5 {[%clk 0:00:22]} 55. bxa5 {[%clk 0:01:35]}  Qxa5 {[%clk 0:00:22]} 56. Kg5 {[%clk 0:01:33]}  b4 {[%clk 0:00:13]} 57. Kh6 {[%clk 0:01:28]}  Qa8 {[%clk 0:00:08]} 58. Qxb4 {[%clk 0:01:23]}  Qe8 {[%clk 0:00:05]} 59. Qd6 {[%clk 0:01:22]}  g5 {[%clk 0:00:01]} 60. Kxg5 {[%clk 0:01:21]}  Kh7 {[%clk 0:00:01]} 61. Kxh5 {[%clk 0:01:16]}  f6+ {[%clk 0:00:01]} 62. Kg4 {[%clk 0:01:16]}  Qg6+ {[%clk 0:00:01]} 63. Kf4 {[%clk 0:01:15]}  Qh6+ {[%clk 0:00:01]} 64. Ke4 {[%clk 0:01:10]}  Qg6+ {[%clk 0:00:01]} 65. Kd5 {[%clk 0:01:10]}  Qd3+ {[%clk 0:00:01]} 66. Ke6 {[%clk 0:01:10]}  Qxf3 {[%clk 0:00:01]} 67. Qe7+ {[%clk 0:01:10]} 1-0


[Site "https://www.chess.com"]

[Event "Titled Tuesday Blitz November 22 Late 2022"]
[White "Mladek, Richard"]
[Black "Martinez Alcantara, Jose Eduardo"]
[WhiteFideId "386588"]
[BlackFideId "3805662"]
[WhiteElo "2271"]
[BlackElo "2705"]
[Result "0-1"]
[Round "02"]
[TimeControl "180+1"]
[Date "2022.11.22"]
[WhiteClock "0:00:18"]
[BlackClock "0:02:01"]

1. d4 {[%clk 0:03:00]}  Nf6 {[%clk 0:02:57]} 2. c4 {[%clk 0:03:01]}  e6 {[%clk 0:02:57]} 3. Nc3 {[%clk 0:03:01]}  Bb4 {[%clk 0:02:55]} 4. e3 {[%clk 0:03:02]}  O-O {[%clk 0:02:55]} 5. Bd2 {[%clk 0:03:02]}  Bxc3 {[%clk 0:02:53]} 6. Bxc3 {[%clk 0:03:03]}  Ne4 {[%clk 0:02:53]} 7. Bb4 {[%clk 0:02:57]}  d6 {[%clk 0:02:53]} 8. Bd3 {[%clk 0:02:51]}  Nf6 {[%clk 0:02:53]} 9. Nf3 {[%clk 0:02:46]}  b6 {[%clk 0:02:52]} 10. O-O {[%clk 0:02:43]}  Bb7 {[%clk 0:02:52]} 11. Re1 {[%clk 0:02:31]}  Nbd7 {[%clk 0:02:53]} 12. e4 {[%clk 0:02:28]}  c5 {[%clk 0:02:53]} 13. Ba3 {[%clk 0:02:20]}  e5 {[%clk 0:02:50]} 14. d5 {[%clk 0:02:16]}  Re8 {[%clk 0:02:50]} 15. h3 {[%clk 0:02:05]}  Nf8 {[%clk 0:02:47]} 16. b4 {[%clk 0:01:59]}  cxb4 {[%clk 0:02:46]} 17. Bxb4 {[%clk 0:01:59]}  Qc7 {[%clk 0:02:47]} 18. a4 {[%clk 0:01:59]}  a5 {[%clk 0:02:46]} 19. Bd2 {[%clk 0:01:58]}  N8d7 {[%clk 0:02:46]} 20. Bg5 {[%clk 0:01:49]}  h6 {[%clk 0:02:46]} 21. Bh4 {[%clk 0:01:50]}  Ba6 {[%clk 0:02:46]} 22. Nd2 {[%clk 0:01:48]}  Nh7 {[%clk 0:02:45]} 23. Rc1 {[%clk 0:01:16]}  Nhf8 {[%clk 0:02:45]} 24. Nf1 {[%clk 0:01:16]}  Nc5 {[%clk 0:02:43]} 25. Ng3 {[%clk 0:01:06]}  Bc8 {[%clk 0:02:43]} 26. Nf5 {[%clk 0:01:04]}  Ng6 {[%clk 0:02:43]} 27. Bg3 {[%clk 0:01:04]}  Bd7 {[%clk 0:02:41]} 28. Bc2 {[%clk 0:01:03]}  Ne7 {[%clk 0:02:20]} 29. Ne3 {[%clk 0:00:58]}  Rac8 {[%clk 0:02:18]} 30. h4 {[%clk 0:00:58]}  Qd8 {[%clk 0:02:14]} 31. h5 {[%clk 0:00:58]}  Kh8 {[%clk 0:02:14]} 32. Bh4 {[%clk 0:00:58]}  f6 {[%clk 0:02:14]} 33. g3 {[%clk 0:00:46]}  Rf8 {[%clk 0:02:14]} 34. f4 {[%clk 0:00:46]}  Qe8 {[%clk 0:02:14]} 35. f5 {[%clk 0:00:46]}  Bxa4 {[%clk 0:02:12]} 36. Bxa4 {[%clk 0:00:31]}  Qxa4 {[%clk 0:02:13]} 37. Qf3 {[%clk 0:00:28]}  Nd3 {[%clk 0:02:11]} 38. Ra1 {[%clk 0:00:26]}  Nxe1 {[%clk 0:02:11]} 39. Rxe1 {[%clk 0:00:21]}  b5 {[%clk 0:02:11]} 40. Ng4 {[%clk 0:00:19]}  Qxc4 {[%clk 0:02:05]} 41. Kh2 {[%clk 0:00:18]}  Qc3 {[%clk 0:02:03]} 42. Re3 {[%clk 0:00:18]}  Qc1 {[%clk 0:02:01]} 0-1


[Site "https://www.chess.com"]

[Event "Titled Tuesday Blitz November 22 Late 2022"]
[White "Naroditsky, Daniel"]
[Black "Piesik, Piotr"]
[WhiteFideId "2026961"]
[BlackFideId "1136194"]
[WhiteElo "2628"]
[BlackElo "2316"]
[Result "1-0"]
[Round "02"]
[TimeControl "180+1"]
[Date "2022.11.22"]
[WhiteClock "0:00:11"]
[BlackClock "0:00:13"]

1. e4 {[%clk 0:03:00]}  g6 {[%clk 0:02:59]} 2. d4 {[%clk 0:03:01]}  Bg7 {[%clk 0:03:00]} 3. Nc3 {[%clk 0:03:01]}  c6 {[%clk 0:03:00]} 4. Be3 {[%clk 0:02:59]}  d5 {[%clk 0:03:00]} 5. f3 {[%clk 0:03:00]}  dxe4 {[%clk 0:03:00]} 6. fxe4 {[%clk 0:03:01]}  Nf6 {[%clk 0:03:01]} 7. Nf3 {[%clk 0:02:55]}  Ng4 {[%clk 0:03:01]} 8. Bg1 {[%clk 0:02:55]}  e5 {[%clk 0:03:01]} 9. dxe5 {[%clk 0:02:21]}  Qxd1+ {[%clk 0:03:00]} 10. Rxd1 {[%clk 0:02:22]}  Nxe5 {[%clk 0:02:59]} 11. Bc5 {[%clk 0:02:15]}  Nbd7 {[%clk 0:02:58]} 12. Bd6 {[%clk 0:02:12]}  Nxf3+ {[%clk 0:02:42]} 13. gxf3 {[%clk 0:02:13]}  Be5 {[%clk 0:02:41]} 14. Bxe5 {[%clk 0:01:40]}  Nxe5 {[%clk 0:02:42]} 15. f4 {[%clk 0:01:41]}  Nd7 {[%clk 0:02:37]} 16. Kf2 {[%clk 0:01:40]}  a5 {[%clk 0:02:33]} 17. a4 {[%clk 0:01:33]}  Nc5 {[%clk 0:02:33]} 18. Ke3 {[%clk 0:01:33]}  Be6 {[%clk 0:02:26]} 19. Be2 {[%clk 0:01:32]}  Ke7 {[%clk 0:02:24]} 20. b3 {[%clk 0:01:29]}  Rad8 {[%clk 0:02:21]} 21. Rxd8 {[%clk 0:01:20]}  Rxd8 {[%clk 0:02:20]} 22. Rf1 {[%clk 0:01:21]}  f5 {[%clk 0:02:19]} 23. e5 {[%clk 0:01:19]}  Bd5 {[%clk 0:02:07]} 24. h4 {[%clk 0:01:16]}  Be4 {[%clk 0:02:06]} 25. Nxe4 {[%clk 0:01:14]}  Nxe4 {[%clk 0:02:06]} 26. Bd3 {[%clk 0:01:09]}  Nc5 {[%clk 0:02:03]} 27. h5 {[%clk 0:01:05]}  Kf7 {[%clk 0:01:45]} 28. Rh1 {[%clk 0:00:59]}  Kg7 {[%clk 0:01:43]} 29. h6+ {[%clk 0:00:55]}  Kf7 {[%clk 0:01:42]} 30. Bc4+ {[%clk 0:00:56]}  Ke7 {[%clk 0:01:42]} 31. Rg1 {[%clk 0:00:51]}  Ne4 {[%clk 0:01:32]} 32. Bd3 {[%clk 0:00:51]}  Nc5 {[%clk 0:01:32]} 33. Bc4 {[%clk 0:00:42]}  Ne4 {[%clk 0:01:32]} 34. Bd3 {[%clk 0:00:38]}  Nc5 {[%clk 0:01:32]} 35. Be2 {[%clk 0:00:33]}  Ne4 {[%clk 0:01:29]} 36. Rd1 {[%clk 0:00:27]}  Rxd1 {[%clk 0:01:11]} 37. Bxd1 {[%clk 0:00:28]}  Nc5 {[%clk 0:01:06]} 38. Be2 {[%clk 0:00:28]}  Ne6 {[%clk 0:00:53]} 39. Bc4 {[%clk 0:00:28]}  Kd7 {[%clk 0:00:45]} 40. c3 {[%clk 0:00:24]}  Ke7 {[%clk 0:00:43]} 41. b4 {[%clk 0:00:24]}  b6 {[%clk 0:00:43]} 42. bxa5 {[%clk 0:00:19]}  bxa5 {[%clk 0:00:43]} 43. Bxe6 {[%clk 0:00:20]}  Kxe6 {[%clk 0:00:44]} 44. Kd4 {[%clk 0:00:20]}  Ke7 {[%clk 0:00:27]} 45. Kc5 {[%clk 0:00:20]}  Ke6 {[%clk 0:00:22]} 46. Kxc6 {[%clk 0:00:12]}  g5 {[%clk 0:00:13]} 47. fxg5 {[%clk 0:00:13]}  f4 {[%clk 0:00:14]} 48. g6 {[%clk 0:00:14]}  f3 {[%clk 0:00:14]} 49. g7 {[%clk 0:00:10]}  Kf7 {[%clk 0:00:13]} 50. e6+ {[%clk 0:00:11]} 1-0


[Site "https://www.chess.com"]

[Event "Titled Tuesday Blitz November 22 Late 2022"]
[White "Omariev, Maksim"]
[Black "Gorodetzky, David"]
[WhiteFideId "4193423"]
[BlackFideId "2813416"]
[WhiteElo "2414"]
[BlackElo "2497"]
[Result "0-1"]
[Round "02"]
[TimeControl "180+1"]
[Date "2022.11.23"]
[WhiteClock "0:00:31"]
[BlackClock "0:01:23"]

1. e4 {[%clk 0:02:36]}  c6 {[%clk 0:02:56]} 2. d4 {[%clk 0:02:35]}  d5 {[%clk 0:02:57]} 3. Nc3 {[%clk 0:02:36]}  g6 {[%clk 0:02:54]} 4. Nf3 {[%clk 0:02:33]}  Bg7 {[%clk 0:02:52]} 5. h3 {[%clk 0:02:31]}  dxe4 {[%clk 0:02:50]} 6. Nxe4 {[%clk 0:02:32]}  Nf6 {[%clk 0:02:51]} 7. Nxf6+ {[%clk 0:02:25]}  exf6 {[%clk 0:02:52]} 8. Bd3 {[%clk 0:02:25]}  O-O {[%clk 0:02:50]} 9. O-O {[%clk 0:02:23]}  Nd7 {[%clk 0:02:43]} 10. c3 {[%clk 0:02:22]}  Re8 {[%clk 0:02:42]} 11. Bf4 {[%clk 0:02:23]}  Nb6 {[%clk 0:02:34]} 12. Qd2 {[%clk 0:02:18]}  Be6 {[%clk 0:02:32]} 13. Rfe1 {[%clk 0:02:17]}  Qd7 {[%clk 0:02:30]} 14. a4 {[%clk 0:02:14]}  a5 {[%clk 0:02:29]} 15. Qc2 {[%clk 0:02:10]}  Bd5 {[%clk 0:02:24]} 16. Nd2 {[%clk 0:02:09]}  f5 {[%clk 0:02:20]} 17. b3 {[%clk 0:02:08]}  Rac8 {[%clk 0:02:18]} 18. Nf1 {[%clk 0:01:48]}  Be6 {[%clk 0:02:13]} 19. Be5 {[%clk 0:01:43]}  Bxe5 {[%clk 0:01:54]} 20. Rxe5 {[%clk 0:01:44]}  Qd6 {[%clk 0:01:54]} 21. Rxa5 {[%clk 0:01:37]}  Nd5 {[%clk 0:01:51]} 22. Re1 {[%clk 0:01:07]}  Qc7 {[%clk 0:01:41]} 23. b4 {[%clk 0:00:59]}  b6 {[%clk 0:01:40]} 24. Ra6 {[%clk 0:01:00]}  Qb7 {[%clk 0:01:40]} 25. b5 {[%clk 0:00:35]}  cxb5 {[%clk 0:01:39]} 26. Bxb5 {[%clk 0:00:35]}  Nb4 {[%clk 0:01:25]} 27. Qd3 {[%clk 0:00:31]}  Nxd3 {[%clk 0:01:23]} 0-1


[Site "https://www.chess.com"]

[Event "Titled Tuesday Blitz November 22 Late 2022"]
[White "Ozdemir, Serhan Berat"]
[Black "Zakarian, David"]
[WhiteFideId "6374611"]
[BlackFideId "13301276"]
[WhiteElo "2016"]
[BlackElo "2302"]
[Result "1-0"]
[Round "02"]
[TimeControl "180+1"]
[Date "2022.11.23"]
[WhiteClock "0:01:57"]
[BlackClock "0:02:00"]

1. e4 {[%clk 0:03:00]}  Nc6 {[%clk 0:02:58]} 2. Nf3 {[%clk 0:02:57]}  d6 {[%clk 0:02:58]} 3. d4 {[%clk 0:02:56]}  Nf6 {[%clk 0:02:59]} 4. Nc3 {[%clk 0:02:56]}  Bg4 {[%clk 0:02:59]} 5. Be3 {[%clk 0:02:55]}  e6 {[%clk 0:02:59]} 6. h3 {[%clk 0:02:42]}  Bh5 {[%clk 0:02:57]} 7. Bb5 {[%clk 0:02:41]}  a6 {[%clk 0:02:54]} 8. Ba4 {[%clk 0:02:38]}  Nd7 {[%clk 0:02:46]} 9. d5 {[%clk 0:02:18]}  exd5 {[%clk 0:02:43]} 10. Nxd5 {[%clk 0:02:14]}  Be7 {[%clk 0:02:31]} 11. Qd2 {[%clk 0:02:05]}  Bxf3 {[%clk 0:02:14]} 12. gxf3 {[%clk 0:02:04]}  Nde5 {[%clk 0:02:14]} 13. Qe2 {[%clk 0:02:02]}  b5 {[%clk 0:02:13]} 14. Bb3 {[%clk 0:02:02]}  O-O {[%clk 0:02:05]} 15. f4 {[%clk 0:01:59]}  Nc4 {[%clk 0:02:06]} 16. Bxc4 {[%clk 0:01:58]}  bxc4 {[%clk 0:02:07]} 17. Qxc4 {[%clk 0:01:57]}  Qd7 {[%clk 0:02:00]} 18. Qxc6 {[%clk 0:01:57]} 1-0


[Site "https://www.chess.com"]

[Event "Titled Tuesday Blitz November 22 Late 2022"]
[White "Paiva, Henrique M A Albergaria"]
[Black "Mgeladze, Tamaz"]
[WhiteFideId "1920995"]
[BlackFideId "13601202"]
[WhiteElo "1953"]
[BlackElo "2288"]
[Result "1-0"]
[Round "02"]
[TimeControl "180+1"]
[Date "2022.11.23"]
[WhiteClock "0:00:54"]
[BlackClock "0:00:51"]

1. Nf3 {[%clk 0:03:00]}  Nf6 {[%clk 0:02:59]} 2. d4 {[%clk 0:03:00]}  g6 {[%clk 0:02:59]} 3. c4 {[%clk 0:03:00]}  Bg7 {[%clk 0:03:00]} 4. Nc3 {[%clk 0:02:59]}  O-O {[%clk 0:03:01]} 5. e4 {[%clk 0:02:59]}  d6 {[%clk 0:03:01]} 6. h3 {[%clk 0:02:59]}  e5 {[%clk 0:03:02]} 7. d5 {[%clk 0:02:43]}  a5 {[%clk 0:03:02]} 8. Be3 {[%clk 0:02:43]}  Na6 {[%clk 0:03:02]} 9. Be2 {[%clk 0:02:43]}  Nd7 {[%clk 0:03:03]} 10. Nd2 {[%clk 0:02:42]}  Ndc5 {[%clk 0:03:03]} 11. h4 {[%clk 0:02:42]}  f5 {[%clk 0:02:58]} 12. f3 {[%clk 0:02:40]}  h5 {[%clk 0:02:49]} 13. a3 {[%clk 0:02:34]}  Bd7 {[%clk 0:02:47]} 14. Qc2 {[%clk 0:02:26]}  Kh7 {[%clk 0:02:47]} 15. Nb3 {[%clk 0:02:21]}  Bh6 {[%clk 0:02:43]} 16. Bxh6 {[%clk 0:02:17]}  Kxh6 {[%clk 0:02:43]} 17. Nxc5 {[%clk 0:02:17]}  Nxc5 {[%clk 0:02:42]} 18. O-O-O {[%clk 0:02:11]}  fxe4 {[%clk 0:02:35]} 19. Nxe4 {[%clk 0:02:07]}  Bf5 {[%clk 0:02:32]} 20. Qd2+ {[%clk 0:02:07]}  Kg7 {[%clk 0:02:30]} 21. Nxc5 {[%clk 0:02:07]}  dxc5 {[%clk 0:02:29]} 22. Bd3 {[%clk 0:02:06]}  Ra6 {[%clk 0:02:21]} 23. Qe3 {[%clk 0:02:01]}  Bxd3 {[%clk 0:02:17]} 24. Qxe5+ {[%clk 0:01:56]}  Qf6 {[%clk 0:02:05]} 25. Qxf6+ {[%clk 0:01:55]}  Rfxf6 {[%clk 0:02:06]} 26. Rxd3 {[%clk 0:01:55]}  Rf4 {[%clk 0:02:07]} 27. Rc3 {[%clk 0:01:45]}  Ra8 {[%clk 0:02:04]} 28. g3 {[%clk 0:01:43]}  Rd4 {[%clk 0:02:03]} 29. Rd1 {[%clk 0:01:40]}  Re8 {[%clk 0:02:00]} 30. Rxd4 {[%clk 0:01:37]}  cxd4 {[%clk 0:02:01]} 31. Rd3 {[%clk 0:01:36]}  Re1+ {[%clk 0:01:47]} 32. Kc2 {[%clk 0:01:31]}  Rg1 {[%clk 0:01:47]} 33. f4 {[%clk 0:01:30]}  Kf6 {[%clk 0:01:44]} 34. c5 {[%clk 0:01:28]}  Kf5 {[%clk 0:01:36]} 35. d6 {[%clk 0:01:17]}  cxd6 {[%clk 0:01:37]} 36. cxd6 {[%clk 0:01:18]}  Ke6 {[%clk 0:01:37]} 37. Rxd4 {[%clk 0:01:18]}  Kd7 {[%clk 0:01:35]} 38. Rd3 {[%clk 0:01:18]}  a4 {[%clk 0:01:31]} 39. Kc3 {[%clk 0:01:18]}  Rg2 {[%clk 0:01:30]} 40. b3 {[%clk 0:01:17]}  axb3 {[%clk 0:01:17]} 41. Kxb3 {[%clk 0:01:18]}  Re2 {[%clk 0:01:15]} 42. Kc4 {[%clk 0:01:16]}  Rc2+ {[%clk 0:01:15]} 43. Kd5 {[%clk 0:01:16]}  Rb2 {[%clk 0:01:13]} 44. Ke5 {[%clk 0:01:16]}  Re2+ {[%clk 0:01:06]} 45. Kf6 {[%clk 0:01:15]}  Re6+ {[%clk 0:01:06]} 46. Kg5 {[%clk 0:01:16]}  b5 {[%clk 0:01:04]} 47. f5 {[%clk 0:01:08]}  gxf5 {[%clk 0:01:03]} 48. Kxh5 {[%clk 0:01:08]}  Re4 {[%clk 0:00:49]} 49. Kg5 {[%clk 0:01:06]}  Re5 {[%clk 0:00:50]} 50. h5 {[%clk 0:00:57]}  f4+ {[%clk 0:00:50]} 51. Kxf4 {[%clk 0:00:55]}  Rxh5 {[%clk 0:00:50]} 52. g4 {[%clk 0:00:55]}  Rh3 {[%clk 0:00:51]} 53. Rxh3 {[%clk 0:00:54]} 1-0


[Site "https://www.chess.com"]